bitfinex/quotes_SOLUSD_20251103
["timestamp","ask_amount","ask_price","bid_price","bid_amount"]
[1762196810504,0.66,167.53,167.42,12.78216157]
[1762196810687,21.252,167.53,167.52,7.63418663]
[1762196810891,0.66,167.53,167.42,28.54392965]
[1762196811089,0.66,167.52,167.44,9.78882769]
[1762196811287,0.66,167.52,167.51,7.63418663]
[1762196811602,0.66,167.54,167.51,7.63418663]
[1762196811807,0.66,167.54,167.44,9.78882769]
[1762196811808,0.66,167.53,167.52,7.63418663]
[1762196812382,0.66,167.53,167.51,7.63418663]
[1762196812597,4.53547406,167.53,167.52,7.63418663]
[1762196812798,38.09449242,167.55,167.52,7.63418663]
[1762196812799,3.87547406,167.54,167.52,7.63418663]
[1762196813084,4.53547406,167.54,167.52,7.63418663]
[1762196813302,0.66,167.53,167.47,5.97114134]
[1762196814389,0.66,167.53,167.45,14.92896557]
[1762196814390,4.53547406,167.53,167.5,7.63418663]
[1762196814592,0.66,167.53,167.5,7.63418663]
[1762196814896,0.66,167.52,167.5,7.63418663]
[1762196815086,3.87547406,167.52,167.45,15.76067314]
[1762196815287,3.87547406,167.53,167.51,7.63418663]
[1762196815493,4.53547406,167.53,167.52,7.63418663]
[1762196815689,0.66,167.53,167.52,7.63418663]
[1762196815904,4.53547406,167.53,167.51,7.63418663]
[1762196816090,0.66,167.53,167.51,7.63418663]
[1762196816280,0.66,167.52,167.5,7.63418663]
[1762196816785,0.66,167.52,167.48,7.63418663]
[1762196816987,3.87547406,167.51,167.49,7.63418663]
[1762196817192,3.87547406,167.51,167.5,7.63418663]
[1762196817593,4.53547406,167.52,167.5,7.63418663]
[1762196817792,3.87547406,167.51,167.41,14.93260541]
[1762196817987,12.6,167.5,167.48,7.63418663]
[1762196818297,3.87547406,167.49,167.48,7.63418663]
[1762196818810,32.76166069,167.49,167.37,5.9747864]
[1762196818996,4.53547406,167.48,167.43,7.63418663]
[1762196819508,0.66,167.47,167.43,7.63418663]
[1762196819695,4.53547406,167.47,167.43,7.63418663]
[1762196819888,12.6,167.46,167.43,7.63418663]
[1762196820090,3.87547406,167.45,167.44,7.63418663]
[1762196820592,3.85770827,167.45,167.44,7.63418663]
[1762196820790,3.85770827,167.45,167.43,7.63418663]
[1762196820791,4.51770827,167.45,167.43,7.63418663]
[1762196821594,4.51770827,167.45,167.4,5.97368522]
[1762196821595,4.51770827,167.45,167.44,7.63418663]
[1762196822413,4.51770827,167.45,167.35,5.97550044]
[1762196822708,12.2018949,167.44,167.33,9.78882769]
[1762196822909,11.4918949,167.43,167.37,7.63418663]
[1762196823212,16.45770827,167.42,167.4,7.63418663]
[1762196823409,3.85770827,167.41,167.37,7.63418663]
[1762196823712,3.85770827,167.41,167.3,0.1]
[1762196823713,3.85770827,167.4,167.35,7.63418663]
[1762196823916,3.85770827,167.39,167.38,7.63418663]
[1762196824117,3.85770827,167.41,167.38,7.63418663]
[1762196824302,3.85770827,167.41,167.4,7.63418663]
[1762196824615,4.56770827,167.41,167.4,7.63418663]
[1762196825617,4.56770827,167.41,167.33,15.76473331]
[1762196825796,4.56770827,167.41,167.39,7.63418663]
[1762196826311,4.56770827,167.4,167.32,5.97649792]
[1762196826515,3.85770827,167.39,167.31,5.97691158]
[1762196826819,0.71,167.4,167.35,7.63418663]
[1762196826820,17.16770827,167.38,167.35,7.63418663]
[1762196827130,3.85770827,167.37,167.34,7.63418663]
[1762196827421,3.85770827,167.37,167.3,6.07722673]
[1762196827422,4.56770827,167.36,167.33,7.63418663]
[1762196827620,0.71,167.36,167.33,7.63418663]
[1762196827823,9.43020069,167.35,167.3,0.1]
[1762196827990,21.32020069,167.34,167.3,0.1]
[1762196828196,3.85770827,167.33,167.3,0.1]
[1762196828395,3.85770827,167.32,167.3,0.1]
[1762196828596,3.85770827,167.31,167.3,0.1]
[1762196828821,25.15970827,167.31,167.3,0.1]
[1762196829000,4.56770827,167.31,167.3,0.1]
[1762196829615,0.71,167.31,167.3,0.1]
[1762196829915,4.56770827,167.31,167.3,0.1]
[1762196830120,0.71,167.31,167.3,7.73418663]
[1762196830793,3.85770827,167.33,167.3,7.73418663]
[1762196831007,3.85770827,167.33,167.31,7.63418663]
[1762196831008,0.71,167.32,167.31,7.63418663]
[1762196831625,3.85770827,167.33,167.31,7.63418663]
[1762196831798,0.71,167.32,167.3,0.1]
[1762196832293,4.56770827,167.32,167.3,0.1]
[1762196832618,0.71,167.32,167.3,0.1]
[1762196832992,3.85770827,167.33,167.31,7.63418663]
[1762196833308,3.85770827,167.33,167.32,7.63418663]
[1762196833494,12.62,167.37,167.33,9.78882769]
[1762196833696,12.62,167.37,167.36,7.63418663]
[1762196834011,16.47751933,167.37,167.36,7.63418663]
[1762196834413,12.62,167.37,167.36,7.63418663]
[1762196834915,12.62,167.4,167.36,7.63418663]
[1762196835112,3.85890813,167.39,167.33,0.14216157]
[1762196835314,3.85890813,167.39,167.35,9.78882769]
[1762196835913,0.71,167.38,167.35,9.78882769]
[1762196836117,3.85890813,167.39,167.37,7.63418663]
[1762196836319,3.86394727,167.39,167.38,7.63418663]
[1762196837421,3.86394727,167.39,167.38,13.60861607]
[1762196838017,3.86394727,167.39,167.38,31.03163039]
[1762196838201,16.46394727,167.43,167.39,9.78882769]
[1762196838401,3.86394727,167.42,167.39,9.78882769]
[1762196838600,0.71,167.42,167.41,7.63418663]
[1762196838813,3.86889186,167.42,167.36,14.93703402]
[1762196839007,12.6,167.43,167.33,5.97621466]
[1762196839008,4.57889186,167.41,167.33,5.97621466]
[1762196839201,8.73138428,167.4,167.3,0.1]
[1762196839507,4.86249242,167.37,167.3,6.0771921]
[1762196839706,3.86889186,167.36,167.3,0.1]
[1762196839900,16.48889186,167.35,167.3,0.1]
[1762196840103,16.48889186,167.35,167.33,7.63418663]
[1762196840104,3.86889186,167.34,167.33,7.63418663]
[1762196840321,4.57889186,167.34,167.32,7.63418663]
[1762196840522,4.57889186,167.33,167.32,7.63418663]
[1762196841327,3.86889186,167.33,167.32,7.63418663]
[1762196842598,3.86889186,167.33,167.31,5.97692905]
[1762196842806,18.19249242,167.35,167.32,7.63418663]
[1762196843004,18.19249242,167.35,167.3,0.1]
[1762196843005,4.58549748,167.34,167.3,0.1]
[1762196843204,3.87549748,167.33,167.3,0.1]
[1762196843432,3.87549748,167.32,167.3,6.07716448]
[1762196843620,17.48249242,167.35,167.3,6.07716448]
[1762196843621,3.87549748,167.31,167.3,6.07716448]
[1762196843820,3.87549748,167.34,167.3,6.07716448]
[1762196844131,3.87549748,167.33,167.3,6.07716448]
[1762196844344,3.87549748,167.32,167.3,6.07716448]
[1762196844505,12.62,167.35,167.3,6.07716448]
[1762196844702,12.62,167.35,167.31,9.78882769]
[1762196844703,3.87770145,167.34,167.31,9.78882769]
[1762196844932,3.87770145,167.33,167.31,9.78882769]
[1762196845118,12.62,167.35,167.31,9.78882769]
[1762196845317,12.62,167.35,167.34,7.63418663]
[1762196845521,16.50074952,167.35,167.34,7.63418663]
[1762196846616,17.21074952,167.35,167.34,7.63418663]
[1762196848138,17.21074952,167.35,167.32,7.63418663]
[1762196848310,4.58074952,167.34,167.32,7.63418663]
[1762196848510,3.88074952,167.33,167.32,7.63418663]
[1762196848711,4.58074952,167.33,167.32,7.63418663]
[1762196849726,3.88074952,167.34,167.32,13.61075846]
[1762196849918,3.88074952,167.33,167.32,5.97657183]
[1762196850121,3.88074952,167.34,167.32,13.61075846]
[1762196850335,3.88074952,167.33,167.31,5.97685615]
[1762196850516,3.88074952,167.34,167.31,5.97685615]
[1762196850721,3.88074952,167.33,167.31,5.97685615]
[1762196850923,12.62,167.35,167.31,20.91917878]
[1762196851138,3.87487544,167.34,167.31,20.91917878]
[1762196851438,12.62,167.35,167.31,20.91917878]
[1762196851749,12.62,167.35,167.34,7.63418663]
[1762196852103,16.49522178,167.35,167.34,7.63418663]
[1762196853839,16.49522178,167.35,167.34,13.61004416]
[1762196854915,12.62,167.35,167.34,13.61004416]
[1762196855115,13.33,167.35,167.34,13.61004416]
[1762196855419,13.33,167.35,167.31,15.76566591]
[1762196855732,13.33,167.35,167.34,7.63418663]
[1762196856040,16.50100253,167.35,167.34,7.63418663]
[1762196856424,16.50100253,167.35,167.3,0.1]
[1762196856425,17.21100253,167.35,167.3,0.1]
[1762196856729,4.59100253,167.34,167.32,7.63418663]
[1762196856934,4.59100253,167.34,167.33,7.63418663]
[1762196857338,4.59100253,167.34,167.32,7.63418663]
[1762196857634,0.71,167.33,167.3,6.07726123]
[1762196857846,3.88100253,167.34,167.32,13.61049075]
[1762196858050,3.88100253,167.34,167.33,7.63418663]
[1762196858344,12.62,167.35,167.33,7.63418663]
[1762196858529,12.62,167.35,167.34,7.63418663]
[1762196858938,16.50707904,167.35,167.34,7.63418663]
[1762196859121,12.62,167.35,167.34,7.63418663]
[1762196859434,12.56,167.38,167.34,7.63418663]
[1762196859640,12.56,167.38,167.37,7.63418663]
[1762196859845,17.15965155,167.38,167.37,7.63418663]
[1762196860653,16.44965155,167.38,167.37,13.60897303]
[1762196860952,12.56,167.38,167.37,7.63418663]
[1762196861155,17.16364062,167.38,167.37,7.63418663]
[1762196861317,16.45364062,167.38,167.37,7.63418663]
[1762196861735,17.16364062,167.38,167.32,5.97657183]
[1762196861942,3.89364062,167.37,167.36,7.63418663]
[1762196862138,3.89364062,167.37,167.36,13.60933003]
[1762196862311,4.60364062,167.37,167.36,7.63418663]
[1762196862516,3.89364062,167.37,167.36,13.60933003]
[1762196862716,4.86249242,167.43,167.36,23.39815772]
[1762196862938,13.27,167.44,167.42,7.63418663]
[1762196863120,13.27,167.44,167.43,7.63418663]
[1762196863943,13.27,167.44,167.43,6.63418663]
[1762196864334,13.27,167.44,167.43,12.60683191]
[1762196864637,13.27,167.44,167.43,6.63418663]
[1762196864845,12.56,167.44,167.43,12.60683191]
[1762196865935,12.56,167.44,167.43,6.63418663]
[1762196866137,13.27,167.44,167.43,12.60683191]
[1762196866343,13.27,167.44,167.41,5.97304304]
[1762196866640,12.56,167.44,167.41,5.97304304]
[1762196866841,12.56,167.44,167.43,7.63418663]
[1762196868925,12.54,167.48,167.44,9.78882769]
[1762196869840,12.54,167.48,167.47,7.63418663]
[1762196870346,12.54,167.51,167.47,13.60540535]
[1762196870554,12.54,167.51,167.47,20.89926553]
[1762196870735,13.25,167.51,167.5,7.63418663]
[1762196872557,12.54,167.51,167.5,4.94788185]
[1762196873831,12.54,167.51,167.43,50.45522642]
[1762196873832,13.25,167.51,167.43,38.35401791]
[1762196874032,0.71,167.5,167.47,4.94788185]
[1762196874433,0.71,167.5,167.46,4.94788185]
[1762196874654,0.71,167.5,167.47,4.94788185]
[1762196874831,3.8859288,167.49,167.47,4.94788185]
[1762196875031,3.8859288,167.48,167.46,4.94788185]
[1762196875229,3.8859288,167.48,167.43,20.90425849]
[1762196875230,16.4059288,167.47,167.45,4.94788185]
[1762196875445,3.8859288,167.46,167.45,4.94788185]
[1762196875949,4.5959288,167.46,167.41,5.97335881]
[1762196876258,4.5959288,167.46,167.44,4.94788185]
[1762196877039,4.5959288,167.46,167.45,4.94788185]
[1762196877560,3.8859288,167.46,167.45,4.94788185]
[1762196878354,3.8859288,167.46,167.45,10.91981376]
[1762196879563,4.5959288,167.46,167.4,9.78882769]
[1762196879769,12.52,167.47,167.39,5.973948]
[1762196879770,4.5959288,167.45,167.39,5.973948]
[1762196880053,0.71,167.45,167.41,4.94788185]
[1762196880255,0.71,167.44,167.43,4.94788185]
[1762196880552,0.71,167.44,167.42,4.94788185]
[1762196880855,12.52,167.43,167.42,4.94788185]
[1762196881372,16.40616471,167.43,167.4,4.94788185]
[1762196881570,12.52,167.43,167.4,4.94788185]
[1762196882352,12.52,167.43,167.42,10.92088388]
[1762196882661,16.40623017,167.43,167.41,10.92115284]
[1762196882875,13.19,167.43,167.41,10.92115284]
[1762196883083,4.86249242,167.5,167.42,5.63788185]
[1762196883382,6.48332323,167.53,167.47,4.94788185]
[1762196883383,13.17,167.49,167.47,4.94788185]
[1762196883544,17.05681899,167.48,167.46,4.94788185]
[1762196883745,13.19,167.48,167.46,4.94788185]
[1762196884287,4.55721019,167.47,167.42,4.94788185]
[1762196884580,0.67,167.46,167.43,4.94788185]
[1762196885653,0.67,167.46,167.39,31.38808152]
[1762196886551,0.67,167.46,167.41,9.78882769]
[1762196887660,4.55721019,167.46,167.39,20.90925383]
[1762196887867,0.67,167.46,167.4,9.78882769]
[1762196888184,3.88721019,167.45,167.4,9.78882769]
[1762196888476,3.88721019,167.45,167.41,5.97335881]
[1762196888686,3.88721019,167.47,167.42,9.78882769]
[1762196888975,13.19,167.48,167.42,10.47882769]
[1762196888976,12.52,167.48,167.42,10.47882769]
[1762196889272,4.56755989,167.47,167.41,9.78882769]
[1762196889571,3.89755989,167.46,167.4,6.66366991]
[1762196889772,0.67,167.46,167.4,20.90795903]
[1762196890071,0.67,167.45,167.4,20.90795903]
[1762196890663,0.67,167.45,167.4,14.93428912]
[1762196891673,3.89755989,167.47,167.41,10.47882769]
[1762196891871,3.89755989,167.47,167.42,0.69]
[1762196892073,3.89755989,167.47,167.43,9.78882769]
[1762196892577,3.89963631,167.47,167.44,5.97228858]
[1762196893982,4.56963631,167.47,167.41,0.69]
[1762196894165,3.89963631,167.47,167.42,9.78882769]
[1762196894482,3.89963631,167.47,167.42,10.47882769]
[1762196894679,3.89963631,167.47,167.43,5.97264528]
[1762196894874,3.89963631,167.47,167.43,6.66264528]
[1762196895084,3.89963631,167.47,167.44,0.69]
[1762196895284,12.52,167.48,167.45,9.78882769]
[1762196895668,12.52,167.48,167.46,0.69]
[1762196896367,12.52,167.48,167.45,9.78882769]
[1762196896368,3.90368369,167.47,167.45,9.78882769]
[1762196896894,12.52,167.48,167.46,5.9715753]
[1762196897476,12.48,167.52,167.47,0.69]
[1762196897788,3.90570729,167.51,167.47,0.69]
[1762196897972,3.90570729,167.5,167.47,9.78882769]
[1762196898174,3.90570729,167.51,167.47,9.78882769]
[1762196898497,3.90570729,167.5,167.47,10.47882769]
[1762196898677,3.90570729,167.51,167.48,5.97086219]
[1762196898864,3.90570729,167.5,167.49,9.78882769]
[1762196899065,3.90570729,167.51,167.49,10.47882769]
[1762196899390,12.48,167.52,167.51,9.78882769]
[1762196899698,16.38625773,167.52,167.49,9.78882769]
[1762196899991,12.48,167.52,167.49,9.78882769]
[1762196900776,13.15,167.52,167.49,9.78882769]
[1762196900976,12.48,167.52,167.51,9.78882769]
[1762196902097,0.67,167.57,167.51,10.47882769]
[1762196902295,16.37279397,167.56,167.51,9.78882769]
[1762196902492,3.91279397,167.55,167.51,9.78882769]
[1762196902685,3.91279397,167.54,167.51,9.78882769]
[1762196902891,3.91279397,167.53,167.51,9.78882769]
[1762196903091,3.91279397,167.52,167.51,15.75862053]
[1762196903289,3.91279397,167.55,167.51,31.37310265]
[1762196903498,3.91279397,167.54,167.51,9.78882769]
[1762196903791,3.91279397,167.53,167.51,9.78882769]
[1762196903995,3.91279397,167.52,167.51,9.78882769]
[1762196904195,3.91279397,167.52,167.49,5.9705057]
[1762196904393,4.58279397,167.51,167.49,5.9705057]
[1762196904592,3.91279397,167.5,167.49,5.9705057]
[1762196905297,3.91279397,167.5,167.49,9.78882769]
[1762196906585,3.91279397,167.5,167.49,5.9705057]
[1762196911106,4.61279397,167.5,167.49,5.9705057]
[1762196911302,9.56441536,167.5,167.45,9.78882769]
[1762196911502,9.56441536,167.49,167.44,0.69]
[1762196911712,3.91279397,167.48,167.44,0.69]
[1762196911891,3.91279397,167.47,167.45,5.97193191]
[1762196912090,3.91279397,167.46,167.45,5.97193191]
[1762196912388,3.91279397,167.46,167.44,5.97218838]
[1762196912590,3.91279397,167.45,167.43,5.97252166]
[1762196912910,0.67,167.48,167.43,5.97252166]
[1762196913108,3.91582631,167.47,167.43,6.66252166]
[1762196913310,3.91582631,167.46,167.43,6.66252166]
[1762196913486,3.91582631,167.45,167.43,6.66252166]
[1762196913803,0.67,167.48,167.43,6.66252166]
[1762196913990,3.91689531,167.47,167.43,6.66252166]
[1762196914196,3.91689531,167.46,167.43,5.97252166]
[1762196914391,3.91689531,167.45,167.43,6.66252166]
[1762196914596,0.67,167.48,167.43,5.97252166]
[1762196914794,3.916443,167.47,167.43,5.97252166]
[1762196914995,3.916443,167.46,167.43,5.97252166]
[1762196915204,3.916443,167.45,167.43,5.97252166]
[1762196915409,3.91614942,167.44,167.43,5.97252166]
[1762196915591,3.91614942,167.47,167.43,5.97252166]
[1762196915792,16.37614942,167.46,167.42,20.90491986]
[1762196915992,3.91614942,167.45,167.42,20.90491986]
[1762196916204,3.91614942,167.44,167.42,21.59491986]
[1762196916406,3.91614942,167.45,167.42,21.59491986]
[1762196916711,3.91614942,167.44,167.42,21.59491986]
[1762196916906,3.91614942,167.45,167.42,21.59491986]
[1762196917112,3.91614942,167.44,167.42,21.59491986]
[1762196917414,3.91614942,167.45,167.42,21.59491986]
[1762196917596,3.91614942,167.44,167.42,21.59491986]
[1762196917807,4.58614942,167.45,167.41,15.76210831]
[1762196918121,5.62142905,167.45,167.41,5.97328062]
[1762196918293,3.91493037,167.44,167.41,5.97328062]
[1762196918606,3.91493037,167.43,167.41,5.97328062]
[1762196918815,3.91493037,167.42,167.41,5.97328062]
[1762196918995,0.67,167.45,167.41,5.97328062]
[1762196919197,3.91434975,167.44,167.41,5.97328062]
[1762196919406,3.91434975,167.43,167.41,5.97328062]
[1762196919702,3.91434975,167.42,167.41,5.97328062]
[1762196919896,5.56293719,167.52,167.44,9.78882769]
[1762196920103,0.67,167.52,167.44,9.78882769]
[1762196920300,12.46,167.51,167.46,9.78882769]
[1762196920512,0.67,167.5,167.46,9.78882769]
[1762196921313,0.67,167.5,167.41,104.3]
[1762196921314,4.95142905,167.47,167.4,9.78882769]
[1762196921514,20.592,167.43,167.37,6.66478596]
[1762196921706,20.592,167.43,167.37,21.60175196]
[1762196922100,18.08142905,167.42,167.37,21.60175196]
[1762196922302,12.46,167.41,167.36,5.97507075]
[1762196922703,13.13,167.41,167.36,6.66507075]
[1762196923432,12.46,167.41,167.36,5.97507075]
[1762196923622,0.67,167.4,167.36,5.97507075]
[1762196923814,12.46,167.41,167.37,5.9747864]
[1762196924017,0.67,167.4,167.37,5.9747864]
[1762196924325,0.67,167.4,167.33,0.69]
[1762196924326,5.62142905,167.4,167.36,5.97513106]
[1762196924709,0.67,167.4,167.36,5.97513106]
[1762196924911,0.67,167.39,167.36,5.97513106]
[1762196925740,0.67,167.39,167.33,15.63036678]
[1762196925741,4.95142905,167.38,167.33,5.97621466]
[1762196925952,17.41142905,167.37,167.32,5.97646773]
[1762196926236,0.67,167.36,167.32,20.91789732]
[1762196928607,5.62142905,167.36,167.32,5.97646773]
[1762196928839,4.95142905,167.33,167.3,0.1]
[1762196929023,13.13,167.32,167.3,0.1]
[1762196929210,0.67,167.31,167.3,0.1]
[1762196929413,5.62142905,167.31,167.28,0.1]
[1762196929610,4.95142905,167.29,167.28,0.1]
[1762196929818,25.54342905,167.29,167.28,0.1]
[1762196930016,21.262,167.29,167.28,0.1]
[1762196930933,0.67,167.29,167.28,0.1]
[1762196932647,26.35559062,167.29,167.26,0.1]
[1762196932942,5.09359062,167.27,167.17,20.93671635]
[1762196933130,4.95142905,167.26,167.18,9.78882769]
[1762196933433,5.62142905,167.26,167.18,9.78882769]
[1762196933620,0.67,167.25,167.18,9.78882769]
[1762196933825,12.46,167.24,167.17,21.62671635]
[1762196934027,3.88615369,167.23,167.17,21.62671635]
[1762196934227,4.55615369,167.23,167.17,21.62671635]
[1762196934425,0.67,167.22,167.17,20.93671635]
[1762196934622,3.88615369,167.23,167.17,20.93671635]
[1762196934826,12.46,167.22,167.18,10.47882769]
[1762196935224,12.46,167.22,167.2,9.78882769]
[1762196935622,12.46,167.22,167.21,10.47882769]
[1762196936035,12.46,167.22,167.21,5.98050355]
[1762196936240,12.46,167.22,167.21,6.67050355]
[1762196936417,12.46,167.22,167.21,5.98050355]
[1762196937741,12.46,167.22,167.21,6.67050355]
[1762196938445,4.89293719,167.3,167.21,21.62176244]
[1762196938652,3.85663586,167.3,167.22,10.47882769]
[1762196938851,12.48,167.29,167.22,10.47882769]
[1762196939029,12.48,167.29,167.23,0.69]
[1762196939223,4.52716434,167.28,167.21,20.93176244]
[1762196939436,4.52716434,167.28,167.21,5.98050355]
[1762196939628,4.52716434,167.28,167.22,0.69]
[1762196939932,0.67,167.27,167.23,5.97978831]
[1762196940144,3.85716434,167.28,167.23,5.97978831]
[1762196940344,0.67,167.27,167.23,5.97978831]
[1762196940859,0.67,167.27,167.23,20.92925909]
[1762196942266,3.85716434,167.28,167.24,0.69]
[1762196942568,0.69,167.28,167.21,10.49882769]
[1762196943040,4.54716434,167.28,167.21,0.71]
[1762196943436,0.69,167.27,167.21,0.71]
[1762196943950,4.54716434,167.27,167.21,0.71]
[1762196944145,0.69,167.27,167.22,5.98014591]
[1762196944342,3.85716434,167.26,167.22,5.98014591]
[1762196944740,3.85716434,167.27,167.23,0.71]
[1762196944939,3.85716434,167.28,167.23,0.71]
[1762196945146,3.85716434,167.28,167.24,9.78882769]
[1762196945355,3.85716434,167.28,167.23,0.71]
[1762196945533,4.54716434,167.28,167.23,10.49882769]
[1762196945935,0.69,167.27,167.22,20.93051069]
[1762196946338,3.85716434,167.28,167.23,0.71]
[1762196946555,3.85716434,167.28,167.23,10.49882769]
[1762196946754,3.85716434,167.28,167.24,9.78882769]
[1762196947056,3.85716434,167.28,167.25,0.71]
[1762196947935,28.25417712,167.26,167.17,62.48]
[1762196948243,4.54716434,167.27,167.16,0.71]
[1762196948244,20.592,167.24,167.16,0.71]
[1762196948446,17.06716434,167.23,167.16,0.71]
[1762196948634,3.85716434,167.22,167.16,0.71]
[1762196948834,3.85716434,167.21,167.16,0.71]
[1762196949048,3.85716434,167.2,167.16,0.71]
[1762196949259,3.85716434,167.19,167.14,0.71]
[1762196949462,11.51934146,167.21,167.14,0.71]
[1762196949656,3.85716434,167.2,167.14,0.71]
[1762196949849,3.85716434,167.19,167.14,0.71]
[1762196950161,3.85716434,167.21,167.16,20.93802344]
[1762196950342,3.85716434,167.2,167.16,20.93802344]
[1762196950661,3.85716434,167.19,167.17,0.71]
[1762196950859,3.85716434,167.22,167.17,0.71]
[1762196951037,3.85716434,167.21,167.17,0.71]
[1762196951237,3.85716434,167.2,167.17,0.71]
[1762196951434,3.85716434,167.19,167.17,0.71]
[1762196951646,25.76511431,167.23,167.18,5.98157674]
[1762196951870,3.85546753,167.22,167.18,5.98157674]
[1762196952166,3.85546753,167.21,167.18,5.98157674]
[1762196952366,3.85546753,167.2,167.19,9.78882769]
[1762196952660,3.85546753,167.2,167.19,10.49882769]
[1762196952835,3.85546753,167.2,167.19,0.71]
[1762196953041,3.85546753,167.2,167.18,5.98157674]
[1762196953242,3.85546753,167.19,167.18,5.98157674]
[1762196953442,3.85546753,167.19,167.18,15.77040443]
[1762196954376,3.85546753,167.19,167.18,5.98157674]
[1762196955180,3.85546753,167.19,167.15,9.78882769]
[1762196955362,16.35546753,167.18,167.15,5.98255542]
[1762196955687,3.85546753,167.17,167.15,5.98255542]
[1762196955985,11.51764465,167.16,167.08,9.78882769]
[1762196956204,3.85546753,167.15,167.1,6.69444045]
[1762196956488,16.35546753,167.14,167.1,6.69444045]
[1762196956786,16.35546753,167.14,167.1,5.98442198]
[1762196956787,3.85546753,167.13,167.1,5.98442198]
[1762196957103,3.85546753,167.12,167.0,50.0]
[1762196957407,7.66217712,167.07,167.01,20.95682892]
[1762196957599,16.37546753,167.06,167.01,20.95682892]
[1762196957757,3.85546753,167.05,167.01,21.66682892]
[1762196957960,12.52,167.06,167.01,21.66682892]
[1762196957961,3.85546753,167.04,167.01,21.66682892]
[1762196958162,3.85546753,167.03,166.99,20.95933887]
[1762196958361,12.52,167.06,167.0,0.71]
[1762196958597,3.85460025,167.05,167.0,0.71]
[1762196958884,3.85460025,167.04,167.0,0.71]
[1762196959060,12.52,167.06,167.01,9.78882769]
[1762196959269,3.85716359,167.05,167.0,10.49882769]
[1762196959572,3.85716359,167.04,167.0,10.49882769]
[1762196959770,12.52,167.06,167.01,0.85216157]
[1762196959976,3.85649057,167.05,167.01,0.85216157]
[1762196960162,4.89293719,167.09,167.04,15.77541772]
[1762196960363,3.85376039,167.08,167.04,30.74189281]
[1762196960568,3.85376039,167.07,167.06,9.78882769]
[1762196960786,12.58,167.1,167.07,0.14216157]
[1762196960963,4.89293719,167.14,167.09,9.78882769]
[1762196961183,5.58293719,167.17,167.1,0.14216157]
[1762196961513,12.58,167.18,167.13,9.78882769]
[1762196961671,13.27,167.18,167.13,0.71]
[1762196962092,13.27,167.18,167.13,10.49882769]
[1762196962383,12.58,167.18,167.15,9.78882769]
[1762196962599,4.89293719,167.2,167.15,9.78882769]
[1762196963105,5.58293719,167.2,167.15,9.78882769]
[1762196963284,0.69,167.19,167.14,20.94052889]
[1762196963489,5.58293719,167.19,167.14,20.94052889]
[1762196964386,5.58293719,167.19,167.14,14.95752064]
[1762196964588,12.58,167.21,167.13,5.98336624]
[1762196964589,5.58293719,167.18,167.13,5.98336624]
[1762196964788,4.89293719,167.17,167.13,5.98336624]
[1762196965099,5.58293719,167.17,167.13,5.98336624]
[1762196965296,5.58293719,167.16,167.13,5.98336624]
[1762196965500,4.89293719,167.15,167.13,5.98336624]
[1762196966007,4.89293719,167.17,167.13,20.94178184]
[1762196966303,4.89293719,167.17,167.15,5.98265031]
[1762196968077,4.89293719,167.18,167.15,6.68265031]
[1762196968293,4.89293719,167.2,167.16,10.48882769]
[1762196968578,4.89293719,167.19,167.15,20.93927609]
[1762196968794,5.58293719,167.19,167.15,20.93927609]
[1762196968990,5.58293719,167.19,167.15,5.98265031]
[1762196969391,4.89293719,167.19,167.15,21.63927609]
[1762196970192,4.89293719,167.18,167.15,20.93927609]
[1762196970393,1.99999999,167.31,167.15,20.93927609]
[1762196970394,4.86381215,167.19,167.18,9.78882769]
[1762196970619,7.21391625,167.25,167.18,9.78882769]
[1762196970913,0.69,167.25,167.18,9.78882769]
[1762196971118,0.69,167.24,167.18,9.78882769]
[1762196971339,0.69,167.24,167.16,9.93098926]
[1762196971619,0.69,167.24,167.16,10.63098926]
[1762196972286,0.69,167.24,167.17,20.93677094]
[1762196972495,0.69,167.24,167.18,9.78882769]
[1762196972697,3.89857431,167.23,167.19,0.14216157]
[1762196973004,3.89857431,167.22,167.19,0.81216157]
[1762196973202,3.89857431,167.21,167.19,0.81216157]
[1762196973403,0.72,167.25,167.19,10.60098926]
[1762196973404,3.89857431,167.2,167.19,10.60098926]
[1762196973609,0.72,167.25,167.19,10.60098926]
[1762196974711,0.72,167.25,167.21,9.78882769]
[1762196974893,12.56,167.26,167.21,9.78882769]
[1762196975090,12.56,167.26,167.23,9.78882769]
[1762196975315,0.72,167.29,167.23,9.78882769]